{"text_format":"1","workbook":"xlsx","n_sheets":3,"sheets":["стандарт","ануітет","Номінальна %ставка"],"not_rendered":{"charts":0,"images":4,"macros":1,"external_links":0,"defined_names":0,"comments":0,"pivot_tables":0},"unopened":[],"bounds":{"document_bytes":16777216,"sheet_cells":100000,"rows_first":2000,"rows_last":500,"rows_between":2000,"halvings":0,"cell_chars":16384,"cell_head_chars":4096},"cells_cut":0,"cells_raw":0,"read":"whole","date_system":"1900"}

{"sheet":"стандарт","index":0,"n_rows":98,"n_cols":25,"rows_kept":98,"cut":false,"hidden":false,"merged":[[100,1,100,17],[37,2,38,2],[37,3,38,3],[98,1,98,22],[37,20,38,20],[37,1,38,1],[97,1,97,17],[99,1,99,17],[94,1,94,8],[37,21,38,21],[37,4,38,4],[37,14,38,14],[37,15,38,15],[37,17,38,17],[37,19,38,19],[37,12,38,12],[105,1,105,22],[102,1,102,22],[103,1,103,22],[104,1,104,22],[101,1,101,17],[37,13,38,13],[92,1,92,8],[30,19,30,21],[33,21,36,21],[33,20,36,20],[33,3,33,19],[35,5,35,9],[34,5,34,19],[35,17,35,19],[8,1,8,2],[14,0,15,0],[33,0,36,0],[15,1,15,2],[13,1,13,2],[12,1,12,2],[11,1,11,2],[33,1,36,1],[33,2,36,2],[10,1,10,2],[14,1,14,2],[22,1,22,2],[95,1,95,17],[96,1,96,17],[14,11,14,13],[35,10,35,16],[37,5,38,5],[37,6,38,6],[37,8,38,8],[37,9,38,9],[37,10,38,10],[37,11,38,11],[34,4,36,4],[34,3,36,3],[27,4,27,5],[90,1,90,8],[91,1,91,8],[93,1,93,8]]}
[]
[]
[]
[null,null,null,"КАЛЬКУЛЯТОР"]
[null,null,null,"Обрані Споживачем умови кредитування"]
[]
[null,"Кредит видається на:",null,"АВТО вживані"]
[null,"Дата надання кредиту",null,{"$f":"TODAY()","v":"2023-09-05"}]
[null,"Сума кредиту,грн.: ",null,1500000,"гривень"]
[null,"Забезпечення",null,3200000,"гривень",null,null,null,null,null,null,null,"Заповнюється Клієнтом"]
[null,"Строк користування кредитом (в місяцях): ",null,48]
[null,"Погашення основної суми кредиту: щомісяця"]
[null,"Погашення процентів: щомісяця"]
[{"$f":"ROUND(D9/D11,2)","v":31250},"Номінальна процентна ставка: ",null,{"$f":"VLOOKUP(D15,'Номінальна %ставка'!$A$2:$F$6,MATCH(стандарт!$D$11,'Номінальна %ставка'!$A$2:$F$2,0),0)","v":0.15989999999999999},"річних",{"$f":"D14","v":0.15989999999999999},null,null,{"$f":"F14/12","v":1.3324999999999998E-2}]
[null,"Авансовий внесок",null,0.4,null,{"$f":"D10*D15","v":1280000},"гривень"]
[null,"Супутні витрати позичальника:"]
[{"$f":"DATE(YEAR(B40),MONTH(B40)+1,DAY(B40))","v":"2023-10-05"},"комісія за надання кредиту (разова): ",null,2.5000000000000001E-2," від основної суми кредиту/ Всього:",null,{"$f":"D17*D9","v":37500},null,"гривень"]
[null,"обслуговування кредитної заборгованості: ",null,0,"на місяць від основної суми кредиту:",null,{"$f":"D18*D9","v":0},null,"гривень"]
[null,"розрахунково-касове обслуговування:  ",null,null,null,null,0,null,"гривень"]
[null,"страхування НВ:",null,0,"на рік від основної суми кредиту:",null,{"$f":"D20*D9","v":0},null,"гривень"]
[null,"страхування КАСКО:",null,5.9299999999999999E-2,"на рік від залогової вартості:",null,{"$f":"D10*D21","v":189760},null,"гривень"]
[null,"послуги нотаріуса: ",null,null,null,null,0,null,"гривень"]
[null,"надання витягів/внесення запису(ів) до Державного реєстру обтяжень рухомого майна",null,null,"фіксована сума (одноразово)",null,0,null,"гривень"]
[null,"інші послуги третіх осіб",null,null,"фіксована сума (одноразово)",null,0,null,"гривень"]
[null,"інші послуги банку",null,null,null,null,0,null,"гривень"]
[null,"комісійний збір кредитного посередника",null,0,"від суми кредиту (одноразово)",null,{"$f":"D9*D26","v":0},null,"гривень"]
[null,"оцінка майна:",null,null,"фіксована сума (одноразово)",null,0,null,"гривень"]
[null,"інша плата за послуги кредитного посередника",null,null,null,null,0,null,"гривень"]
[null,"ВСЬОГО",null,null,null,null,{"$f":"SUM(G17:G28)","v":227260},null,"гривень"]
[]
[null,null,null,null,null,{"$f":"PMT(F14/12,E11,-D9)","v":{"$error":"#NUM!"}},{"$f":"IPMT(F14/12,1,24,-D9)","v":19987.499999999996}]
[null,null,null,"Розрахунок загальної вартості споживчого кредиту та реальної процентної ставки"]
[]
[null,"Дата видачі кредиту/дата платежу","Чиста сума кредиту/сума платежу за розрахунковий період, грн.","Види платежів за кредитом",null,null,null,null,null,null,null,null,null,null,null,null,null,null,null,null,"Орієнтовна реальна річна процентна ставка, % ","пепеплата"]
[null,null,null,"сума кредиту за договором","проценти за користування кредитом","платежі за супровідні послуги"]
[null,null,null,null,null,"банку",null,null,null,null,"третіх осіб",null,null,null,null,null,null,"кредитного посередника(за наявності)"]
[null,null,null,null,null,"обслуговування кредитної заборгованості","РКО","розрахунково-касове обслуговування","комісія за надання кредиту","інші послуги банку ","страхування НВ","послугами нотаріусів ","страхування КАСКО","оцінка майна","надання витягів/внесення запису(ів) до Державного реєстру обтяжень рухомого майна","інші послуги третіх осіб",null,"комісійний збір кредитного посередника",null,"інша плата за послуги кредитного посередника"]
[null,1,2,3,4,5,6,null,7,8,9,10,11,12,13,14,null,15,null,16,17,18]
[null,null,null,null,null,null,null,null,null,null,null,null,null,null,null,null,null,null,null,null,null,null,"остаток"]
["e",{"$f":"D8","v":"2023-09-05"},{"$f":"-(D40-SUM(F40:T40))","v":-1272740},{"$f":"D9","v":1500000},"х",{"$f":"$G$18","v":0},{"$f":"G19","v":0},null,{"$f":"G17","v":37500},{"$f":"G25","v":0},{"$f":"IF(X40=\"страховка\",$G$20,0)","v":0},{"$f":"G22","v":0},{"$f":"IF(X40=\"страховка\",$G$21,0)","v":189760},{"$f":"G27","v":0},{"$f":"G23","v":0},{"$f":"G24","v":0},null,{"$f":"G26","v":0},null,{"$f":"G28","v":0},"х","х",1500000,{"$f":"IF(MONTH($B$40)-MONTH(B40)=0,\"страховка\",\"нет\")","v":"страховка"}]
["e",{"$f":"DATE(YEAR(B40),MONTH(B40)+1,DAY(B40))","v":"2023-10-05"},{"$f":"SUM(D41:V41)","v":51237.5},{"$f":"$A$14","v":31250},{"$f":"W40*$D$14/360*Y41","v":19987.499999999996},0,null,null,null,null,{"$f":"IF(X41=\"страховка\",$G$20,0)","v":0},null,{"$f":"IF(X41=\"страховка\",$G$21,0)","v":0},null,null,null,null,null,null,null,null,null,{"$f":"W40-D41","v":1468750},{"$f":"IF(MONTH($B$40)-MONTH(B41)=0,\"страховка\",\"нет\")","v":"нет"},{"$f":"B41-B40","v":30}]
["e",{"$f":"DATE(YEAR(B41),MONTH(B41)+1,DAY(B41))","v":"2023-11-05"},{"$f":"SUM(D42:V42)","v":51473.463541666664},{"$f":"$A$14","v":31250},{"$f":"W41*$D$14/360*Y42","v":20223.463541666664},0,null,null,null,null,0,null,0,null,null,null,null,null,null,null,null,null,{"$f":"W41-D42","v":1437500},"нет",{"$f":"B42-B41","v":31}]
["e","2023-12-05",50404.6875,31250,19154.687499999996,0,null,null,null,null,0,null,0,null,null,null,null,null,null,null,null,null,1406250,"нет",30]
["e","2024-01-05",50612.890625,31250,19362.890624999996,0,null,null,null,null,0,null,0,null,null,null,null,null,null,null,null,null,1375000,"нет",31]
["e","2024-02-05",50182.604166666664,31250,18932.604166666664,0,null,null,null,null,0,null,0,null,null,null,null,null,null,null,null,null,1343750,"нет",31]
["e","2024-03-05",48558.619791666664,31250,17308.619791666664,0,null,null,null,null,0,null,0,null,null,null,null,null,null,null,null,null,1312500,"нет",29]
["e","2024-04-05",49322.03125,31250,18072.031249999996,0,null,null,null,null,0,null,0,null,null,null,null,null,null,null,null,null,1281250,"нет",31]
["e","2024-05-05",48322.65625,31250,17072.65625,0,null,null,null,null,0,null,0,null,null,null,null,null,null,null,null,null,1250000,"нет",30]
["e","2024-06-05",48461.458333333328,31250,17211.458333333332,0,null,null,null,null,0,null,0,null,null,null,null,null,null,null,null,null,1218750,"нет",31]
["e","2024-07-05",47489.84375,31250,16239.843749999996,0,null,null,null,null,0,null,0,null,null,null,null,null,null,null,null,null,1187500,"нет",30]
["e","2024-08-05",47600.885416666664,31250,16350.885416666666,0,null,null,null,null,0,null,0,null,null,null,null,null,null,null,null,null,1156250,"нет",31]
["e","2024-09-05",236930.59895833331,31250,15920.59895833333,0,null,null,null,null,0,null,189760,null,null,null,null,null,null,null,null,null,1125000,"страховка",31]
["e","2024-10-05",46240.625,31250,14990.624999999998,0,null,null,null,null,0,null,0,null,null,null,null,null,null,null,null,null,1093750,"нет",30]
["e","2024-11-05",46310.026041666664,31250,15060.026041666664,0,null,null,null,null,0,null,0,null,null,null,null,null,null,null,null,null,1062500,"нет",31]
["e","2024-12-05",45407.8125,31250,14157.8125,0,null,null,null,null,0,null,0,null,null,null,null,null,null,null,null,null,1031250,"нет",30]
["e","2025-01-05",45449.453125,31250,14199.453125,0,null,null,null,null,0,null,0,null,null,null,null,null,null,null,null,null,1000000,"нет",31]
["e","2025-02-05",45019.166666666672,31250,13769.166666666668,0,null,null,null,null,0,null,0,null,null,null,null,null,null,null,null,null,968750,"нет",31]
["e","2025-03-05",43298.020833333328,31250,12048.020833333332,0,null,null,null,null,0,null,0,null,null,null,null,null,null,null,null,null,937500,"нет",28]
["e","2025-04-05",44158.59375,31250,12908.59375,0,null,null,null,null,0,null,0,null,null,null,null,null,null,null,null,null,906250,"нет",31]
["e","2025-05-05",43325.78125,31250,12075.78125,0,null,null,null,null,0,null,0,null,null,null,null,null,null,null,null,null,875000,"нет",30]
["e","2025-06-05",43298.020833333328,31250,12048.020833333332,0,null,null,null,null,0,null,0,null,null,null,null,null,null,null,null,null,843750,"нет",31]
["e","2025-07-05",42492.96875,31250,11242.96875,0,null,null,null,null,0,null,0,null,null,null,null,null,null,null,null,null,812500,"нет",30]
["e","2025-08-05",42437.447916666664,31250,11187.447916666666,0,null,null,null,null,0,null,0,null,null,null,null,null,null,null,null,null,781250,"нет",31]
["e","2025-09-05",231767.16145833331,31250,10757.161458333332,0,null,null,null,null,0,null,189760,null,null,null,null,null,null,null,null,null,750000,"страховка",31]
["e","2025-10-05",41243.75,31250,9993.7499999999982,0,null,null,null,null,0,null,0,null,null,null,null,null,null,null,null,null,718750,"нет",30]
["e","2025-11-05",41146.588541666664,31250,9896.5885416666661,0,null,null,null,null,0,null,0,null,null,null,null,null,null,null,null,null,687500,"нет",31]
["e","2025-12-05",40410.9375,31250,9160.9375,0,null,null,null,null,0,null,0,null,null,null,null,null,null,null,null,null,656250,"нет",30]
["e","2026-01-05",40286.015625,31250,9036.0156249999982,0,null,null,null,null,0,null,0,null,null,null,null,null,null,null,null,null,625000,"нет",31]
["e","2026-02-05",39855.729166666664,31250,8605.7291666666661,0,null,null,null,null,0,null,0,null,null,null,null,null,null,null,null,null,593750,"нет",31]
["e","2026-03-05",38634.270833333336,31250,7384.270833333333,0,null,null,null,null,0,null,0,null,null,null,null,null,null,null,null,null,562500,"нет",28]
["e","2026-04-05",38995.15625,31250,7745.1562499999991,0,null,null,null,null,0,null,0,null,null,null,null,null,null,null,null,null,531250,"нет",31]
["e","2026-05-05",38328.90625,31250,7078.90625,0,null,null,null,null,0,null,0,null,null,null,null,null,null,null,null,null,500000,"нет",30]
["e","2026-06-05",38134.583333333336,31250,6884.5833333333339,0,null,null,null,null,0,null,0,null,null,null,null,null,null,null,null,null,468750,"нет",31]
["e","2026-07-05",37496.09375,31250,6246.09375,0,null,null,null,null,0,null,0,null,null,null,null,null,null,null,null,null,437500,"нет",30]
["e","2026-08-05",37274.010416666664,31250,6024.0104166666661,0,null,null,null,null,0,null,0,null,null,null,null,null,null,null,null,null,406250,"нет",31]
["e","2026-09-05",226603.72395833334,31250,5593.723958333333,0,null,null,null,null,0,null,189760,null,null,null,null,null,null,null,null,null,375000,"страховка",31]
["e","2026-10-05",36246.875,31250,4996.8749999999991,0,null,null,null,null,0,null,0,null,null,null,null,null,null,null,null,null,343750,"нет",30]
["e","2026-11-05",35983.151041666664,31250,4733.1510416666661,0,null,null,null,null,0,null,0,null,null,null,null,null,null,null,null,null,312500,"нет",31]
["e","2026-12-05",35414.0625,31250,4164.0624999999991,0,null,null,null,null,0,null,0,null,null,null,null,null,null,null,null,null,281250,"нет",30]
["e","2027-01-05",35122.578125,31250,3872.5781249999995,0,null,null,null,null,0,null,0,null,null,null,null,null,null,null,null,null,250000,"нет",31]
["e","2027-02-05",34692.291666666664,31250,3442.291666666667,0,null,null,null,null,0,null,0,null,null,null,null,null,null,null,null,null,218750,"нет",31]
["e","2027-03-05",33970.520833333336,31250,2720.520833333333,0,null,null,null,null,0,null,0,null,null,null,null,null,null,null,null,null,187500,"нет",28]
["e","2027-04-05",33831.71875,31250,2581.7187499999995,0,null,null,null,null,0,null,0,null,null,null,null,null,null,null,null,null,156250,"нет",31]
["e","2027-05-05",33332.03125,31250,2082.0312499999995,0,null,null,null,null,0,null,0,null,null,null,null,null,null,null,null,null,125000,"нет",30]
["e","2027-06-05",32971.145833333336,31250,1721.1458333333335,0,null,null,null,null,0,null,0,null,null,null,null,null,null,null,null,null,93750,"нет",31]
["e","2027-07-05",32499.21875,31250,1249.2187499999998,0,null,null,null,null,0,null,0,null,null,null,null,null,null,null,null,null,62500,"нет",30]
["e","2027-08-05",32110.572916666668,31250,860.57291666666674,0,null,null,null,null,0,null,0,null,null,null,null,null,null,null,null,null,31250,"нет",31]
["e","2027-09-05",31680.286458333332,31250,430.28645833333337,0,null,null,null,null,null,null,null,null,null,null,null,null,null,null,null,null,0,null,31]
[null,"Усього",2597135.112847222,1500000,527855.11284722213,0,0,0,37500,0,0,0,759040,0,0,0,0,0,0,0,{"$f":"XIRR(C40:C88,B40:B88)","v":0.52129591107368478},1324395.112847222]
[]
[null,"Загальні витрати за кредитом( проценти за користування кредитом, комісії та інші обовязкові платежі за супровідні послуги кредитодавця, кредитного посередника (за наявності) та третіх осіб, повязані з отриманням, обслуговуванням та поверненням кредиту), грн з них:",null,null,null,null,null,null,null,{"$f":"V89","v":1324395.112847222}]
[null," - Платежі за супровідні послуги кредитодавця, повязані з отриманням, обслуговуванням та поверненням кредиту), грн",null,null,null,null,null,null,null,{"$f":"E89+F89+G89+I89+J89","v":565355.11284722213}]
[null," - Платежі за супровідні послуги третіх осіб, повязані з отриманням, обслуговуванням та поверненням кредиту), грн",null,null,null,null,null,null,null,{"$f":"K89+L89+M89+N89+O89+P89+R89+T89","v":759040}]
[null,"Орієнтовна загальна вартість кредиту для споживача за весь строк користування кредитом ( у т.ч. тіло кредиту, відсотки, комісії та інші платежі), грн.",null,null,null,null,null,null,null,{"$f":"J91+D9","v":2824395.112847222}]
[null,"Орієнтовна реальна річна процентна ставка, % річних",null,null,null,null,null,null,null,{"$f":"U89","v":0.52129591107368478}]
[null,"Застереження: Розрахунок загальної вартості Кредиту і реальної процентної ставки носить інформативний характер для Позичальника  і визначено станом на дату укладання Кредитного договору. При здійсненні розрахунку загальної вартості Кредиту і реальної процентної ставки Кредитор враховував вартість супутніх послуг третіх осіб, послуги кредитного посередник ( за наявності). В розрахунок загальної  вартості Кредиту і реальної процентної ставки не включались умовні платежі Позичальника  по Договору (пені, штрафи,  які встановлюються згідно з Договором).\n"]
[null," Наведені обчислення реальної річної процентної ставки та орієнтовної загальної вартості кредиту для споживача є репрезентативними та базуються на обраних споживачем умовах кредитування, викладених вище, і на припущенні, що договір про споживчий кредит залишатиметься дійсним протягом погодженого строку, а кредитодавець і споживач виконають свої обов’язки на умовах  та у строки, визначені в договорі.Реальна річна процентна ставка обчислена на основі припущення, що процентна ставка та інші платежі за послуги кредитодавця залишатимуться незмінними та застосовуватимуться протягом строку дії договору про споживчий кредит. Застереження: використання інших способів надання кредиту та/або зміна інших вищезазначених умов кредитування можуть мати наслідком застосування іншої реальної річної процентної ставки та орієнтовної загальної вартості кредиту для споживача.  Орієнтовна реальна річна процентна ставка обчислена з використанням фінансової функції ЧИСТВНДОХ програмного продукту Microsoft Excel."]
[null,"Позичальник не сплачує Кредитору комісійних винагород за розрахунково-касове обслуговування, що пов‘язані з погашенням Кредиту та процентів за ним Позичальником у готівковій чи безготівковій формі через установи Кредитора. У випадку погашення Позичальником Кредиту та процентів за ним не через установи Кредитора Позичальник буде сплачувати послуги інших банків згідно з тарифами, які діятимуть в таких банках на момент здійснення розрахунково-касового обслуговування Позичальника."]

{"sheet":"ануітет","index":1,"n_rows":86,"n_cols":28,"rows_kept":86,"cut":false,"hidden":false,"merged":[[10,1,10,2],[8,1,8,2],[14,0,15,0],[11,1,11,2],[13,1,13,2],[12,1,12,2],[14,1,14,2],[33,21,36,21],[33,20,36,20],[37,1,38,1],[37,2,38,2],[37,3,38,3],[33,3,33,19],[35,5,35,9],[34,5,34,19],[34,4,36,4],[37,21,38,21],[37,4,38,4],[33,1,36,1],[33,2,36,2],[79,1,79,8],[37,19,38,19],[37,10,38,10],[33,0,36,0],[15,1,15,2],[27,4,27,5],[37,11,38,11],[37,12,38,12],[37,14,38,14],[37,15,38,15],[37,9,38,9],[93,1,93,22],[91,1,91,22],[92,1,92,22],[82,1,82,8],[83,1,83,17],[84,1,84,17],[90,1,90,17],[85,1,85,17],[87,1,87,17],[89,1,89,22],[86,1,86,22],[14,10,14,13],[88,1,88,17],[37,17,38,17],[22,1,22,2],[35,10,35,15],[35,17,35,19],[37,5,38,5],[37,6,38,6],[37,8,38,8],[37,13,38,13],[30,19,30,21],[34,3,36,3],[37,20,38,20],[78,1,78,8],[80,1,80,8],[81,1,81,8]]}
[]
[]
[]
[null,null,null,"КАЛЬКУЛЯТОР"]
[null,null,null,"Обрані Споживачем умови кредитування"]
[]
[null,"Кредит видається на:"]
[null,"Дата надання кредиту",null,{"$f":"TODAY()","v":"2023-09-05"},null,null,null,null,null,null,null,"Заповнюється Клієнтом"]
[null,"Сума кредиту,грн.: ",null,420000,"гривень"]
[null,"Забезпечення",null,600000,"гривень"]
[null,"Строк користування кредитом (в місяцях): ",null,12]
[null,"Погашення основної суми кредиту: щомісяця"]
[null,"Погашення процентів: щомісяця"]
[{"$f":"ROUND(D9/D11,2)","v":35000},"Номінальна процентна ставка: ",null,{"$f":"VLOOKUP(D15,'Номінальна %ставка'!$A$2:$F$6,MATCH(D11,'Номінальна %ставка'!$A$2:$F$2,0),0)","v":9.4899999999999998E-2},"річних",{"$f":"D14","v":9.4899999999999998E-2},null,null,{"$f":"F14/12","v":7.9083333333333332E-3}]
[null,"Авансовий внесок",null,0.5,null,{"$f":"D10*D15","v":300000},"гривень"]
[null,"Супутні витрати позичальника:"]
[{"$f":"DATE(YEAR(B40),MONTH(B40)+1,DAY(B40))","v":"2023-10-05"},"комісія за надання кредиту (разова): ",null,2.5000000000000001E-2," від основної суми кредиту. Всього:",null,{"$f":"D17*D9","v":10500},null,"гривень"]
[null,"обслуговування кредитної заборгованості: ",null,0,"на місяць від основної суми кредиту:",null,{"$f":"D18*D9","v":0},null,"гривень"]
[null,"розрахунково-касове обслуговування:  ",null,null,null,null,0,null,"гривень"]
[null,"страхування НВ:",null,0,"на рік від основної суми кредиту:",null,{"$f":"D20*D9","v":0},null,"гривень"]
[null,"страхування КАСКО:",null,6.7900000000000002E-2,"на рік від залогової вартості:",null,{"$f":"D10*D21","v":40740},null,"гривень"]
[null,"послуги нотаріуса: ",null,null,null,null,0,null,"гривень"]
[null,"надання витягів/внесення запису(ів) до Державного реєстру обтяжень рухомого майна",null,null,"фіксована сума (одноразово)",null,0,null,"гривень"]
[null,"інші послуги третіх осіб",null,null,null,null,0,null,"гривень"]
[null,"інші послуги банку",null,null,null,null,0,null,"гривень"]
[null,"комісійний збір кредитного посередника",null,0,"від суми кредиту (одноразово)",null,{"$f":"D9*D26","v":0},null,"гривень"]
[null,"оцінка майна:",null,null,"фіксована сума (одноразово)",null,0,null,"гривень"]
[null,"інша плата за послуги кредитного посередника",null,null,null,null,0,null,"гривень"]
[null,"ВСЬОГО",null,null,null,null,{"$f":"SUM(G17:G28)","v":51240},null,"гривень"]
[]
[null,null,null,null,null,{"$f":"PMT(F14/12,E11,-D9)","v":{"$error":"#NUM!"}},{"$f":"IPMT(F14/12,1,24,-D9)","v":3321.5000000000005}]
[null,null,null,"Розрахунок загальної вартості споживчого кредиту та реальної процентної ставки"]
[]
[null,"Дата видачі кредиту/дата платежу","Чиста сума кредиту/сума платежу за розрахунковий період, грн.","Види платежів за кредитом",null,null,null,null,null,null,null,null,null,null,null,null,null,null,null,null,"Реальна процентна ставка, % ","Абсолютне значення подорожчання кредиту, грн."]
[null,null,null,"сума кредиту за договором","проценти за користування кредитом","платежі за супровідні послуги"]
[null,null,null,null,null," банку",null,null,null,null," третіх осіб",null,null,null,null,null,null,"кредитного посередника(за наявності)"]
[null,null,null,null,null,"обслуговування кредитної заборгованості","РКО",null,"комісія за надання кредиту","інші послуги банку ","страхуванням НВ","послугами нотаріусів","страхування КАСКО:","оцінка майна","надання витягів/внесення запису(ів) до Державного реєстру обтяжень рухомого майна","інші послуги третіх осіб",null,"комісійний збір кредитного посередника",null,"інша плата за послуги кредитного посередника"]
[null,1,2,3,4,5,6,null,7,8,9,10,11,12,13,14,null,15,null,16,17,18]
[null,null,null,null,null,null,null,null,null,null,null,null,null,null,null,null,null,null,null,null,null,null,"остаток",null,null,"ан платеж"]
["e",{"$f":"D8","v":"2023-09-05"},{"$f":"-(D40-SUM(F40:T40))","v":-368760},{"$f":"D9","v":420000},"х",{"$f":"$G$18","v":0},{"$f":"G19","v":0},null,{"$f":"G17","v":10500},{"$f":"G25","v":0},{"$f":"IF(X40=\"страховка\",$G$20,0)","v":0},{"$f":"G22","v":0},{"$f":"IF(X40=\"страховка\",$G$21,0)","v":40740},{"$f":"G27","v":0},{"$f":"G23","v":0},{"$f":"G24","v":0},null,{"$f":"G26","v":0},null,{"$f":"G28","v":0},"х","х",420000,{"$f":"IF(MONTH($B$40)-MONTH(B40)=0,\"страховка\",\"нет\")","v":"страховка"},null,null,null,{"$f":"(D9*D14/12)/(1-(1/(1+D14/12)^D11))","v":36825.124449404291}]
["e",{"$f":"DATE(YEAR(B40),MONTH(B40)+1,DAY(B40))","v":"2023-10-05"},{"$f":"SUM(D41:V41)","v":36825.124449404648},{"$f":"Z41-E41","v":33503.624449404648},{"$f":"W40*$D$14/12","v":3321.5},{"$f":"$G$18","v":0},null,null,null,null,{"$f":"IF(X41=\"страховка\",$G$20,0)","v":0},null,{"$f":"IF(X41=\"страховка\",$G$21,0)","v":0},null,null,null,null,null,null,null,null,null,{"$f":"W40-D41","v":386496.37555059534},{"$f":"IF(MONTH($B$40)-MONTH(B41)=0,\"страховка\",\"нет\")","v":"нет"},{"$f":"B41-B40","v":30},{"$f":"PMT($D$14/12,$D$11,-$D$9)","v":36825.124449404648}]
["e",{"$f":"DATE(YEAR(B41),MONTH(B41)+1,DAY(B41))","v":"2023-11-05"},{"$f":"SUM(D42:V42)","v":36825.124449404648},{"$f":"Z42-E42","v":33768.582279425354},{"$f":"W41*$D$14/12","v":3056.5421699792914},0,null,null,null,null,0,null,0,null,null,null,null,null,null,null,null,null,{"$f":"W41-D42","v":352727.79327117},"нет",{"$f":"B42-B41","v":31},{"$f":"PMT($D$14/12,$D$11,-$D$9)","v":36825.124449404648}]
["e","2023-12-05",36825.124449404648,34035.635484285143,2789.4889651195026,0,null,null,null,null,0,null,0,null,null,null,null,null,null,null,null,null,318692.15778688487,"нет",30,36825.124449404648]
["e","2024-01-05",36825.124449404648,34304.8006349067,2520.3238144979478,0,null,null,null,null,0,null,0,null,null,null,null,null,null,null,null,null,284387.35715197818,"нет",31,36825.124449404648]
["e","2024-02-05",36825.124449404648,34576.094433261089,2249.0300161435607,0,null,null,null,null,0,null,0,null,null,null,null,null,null,null,null,null,249811.2627187171,"нет",31,36825.124449404648]
["e","2024-03-05",36825.124449404648,34849.533713404126,1975.590736000521,0,null,null,null,null,0,null,0,null,null,null,null,null,null,null,null,null,214961.72900531298,"нет",29,36825.124449404648]
["e","2024-04-05",36825.124449404648,35125.135442520965,1699.9890068836833,0,null,null,null,null,0,null,0,null,null,null,null,null,null,null,null,null,179836.59356279203,"нет",31,36825.124449404648]
["e","2024-05-05",36825.124449404648,35402.916721978901,1422.207727425747,0,null,null,null,null,0,null,0,null,null,null,null,null,null,null,null,null,144433.67684081313,"нет",30,36825.124449404648]
["e","2024-06-05",36825.124449404648,35682.894788388548,1142.2296610160972,0,null,null,null,null,0,null,0,null,null,null,null,null,null,null,null,null,108750.78205242459,"нет",31,36825.124449404648]
["e","2024-07-05",36825.124449404648,35965.087014673387,860.0374347312578,0,null,null,null,null,0,null,0,null,null,null,null,null,null,null,null,null,72785.695037751197,"нет",30,36825.124449404648]
["e","2024-08-05",36825.124449404648,36249.510911147765,575.61353825688241,0,null,null,null,null,0,null,0,null,null,null,null,null,null,null,null,null,36536.184126603432,"нет",31,36825.124449404648]
["e","2024-09-05",77565.124449404655,36536.184126603424,288.94032280122212,0,null,null,null,null,0,null,40740,null,null,null,null,null,null,null,null,null,0,"страховка",31,36825.124449404648]
["e","2024-10-05",36825.124449404648,36825.124449404648,0,0,null,null,null,null,0,null,0,null,null,null,null,null,null,null,null,null,-36825.124449404648,"нет",30,36825.124449404648]
["e","2024-11-05",36825.124449404648,37116.349808592022,-291.22535918737509,0,null,null,null,null,0,null,0,null,null,null,null,null,null,null,null,null,-73941.47425799667,"нет",31,36825.124449404648]
["e","2024-12-05",36825.124449404655,37409.878274994975,-584.75382559032369,0,null,null,null,null,0,null,0,null,null,null,null,null,null,null,null,null,-111351.35253299164,"нет",30,36825.124449404648]
["e","2025-01-05",36825.124449404648,37705.728062353053,-880.6036129484088,0,null,null,null,null,0,null,0,null,null,null,null,null,null,null,null,null,-149057.08059534471,"нет",31,36825.124449404648]
["e","2025-02-05",36825.124449404648,38003.917528446167,-1178.7930790415178,0,null,null,null,null,0,null,0,null,null,null,null,null,null,null,null,null,-187060.99812379089,"нет",31,36825.124449404648]
["e","2025-03-05",36825.124449404648,38304.465176233629,-1479.3407268289795,0,null,null,null,null,0,null,0,null,null,null,null,null,null,null,null,null,-225365.46330002451,"нет",28,36825.124449404648]
["e","2025-04-05",36825.124449404648,38607.389655002342,-1782.2652055976939,0,null,null,null,null,0,null,0,null,null,null,null,null,null,null,null,null,-263972.85295502684,"нет",31,36825.124449404648]
["e","2025-05-05",36825.124449404648,38912.709761523984,-2087.5853121193372,0,null,null,null,null,0,null,0,null,null,null,null,null,null,null,null,null,-302885.56271655083,"нет",30,36825.124449404648]
["e","2025-06-05",36825.124449404648,39220.444441221371,-2395.3199918167229,0,null,null,null,null,0,null,0,null,null,null,null,null,null,null,null,null,-342106.0071577722,"нет",31,36825.124449404648]
["e","2025-07-05",36825.124449404648,39530.612789344028,-2705.4883399393816,0,null,null,null,null,0,null,0,null,null,null,null,null,null,null,null,null,-381636.61994711624,"нет",30,36825.124449404648]
["e","2025-08-05",36825.124449404648,39843.234052153093,-3018.1096027484441,0,null,null,null,null,0,null,0,null,null,null,null,null,null,null,null,null,-421479.85399926931,"нет",31,36825.124449404648]
["e","2025-09-05",77565.124449404655,40158.327628115534,-3333.2031787108881,0,null,null,null,null,0,null,40740,null,null,null,null,null,null,null,null,null,-461638.18162738485,"страховка",31,36825.124449404648]
["e","2025-10-05",36825.124449404648,40475.913069107883,-3650.7886197032349,0,null,null,null,null,0,null,0,null,null,null,null,null,null,null,null,null,-502114.09469649271,"нет",30,36825.124449404648]
["e","2025-11-05",36825.124449404655,40796.010081629414,-3970.885632224763,0,null,null,null,null,0,null,0,null,null,null,null,null,null,null,null,null,-542910.10477812216,"нет",31,36825.124449404648]
["e","2025-12-05",36825.124449404648,41118.638528024967,-4293.5140786203165,0,null,null,null,null,0,null,0,null,null,null,null,null,null,null,null,null,-584028.74330614717,"нет",30,36825.124449404648]
["e","2026-01-05",36825.124449404648,41443.81842771743,-4618.6939783127809,0,null,null,null,null,0,null,0,null,null,null,null,null,null,null,null,null,-625472.5617338646,"нет",31,36825.124449404648]
["e","2026-02-05",36825.124449404648,41771.56995844996,-4946.445509045313,0,null,null,null,null,0,null,0,null,null,null,null,null,null,null,null,null,-667244.13169231452,"нет",31,36825.124449404648]
["e","2026-03-05",36825.124449404648,42101.913457538038,-5276.7890081333871,0,null,null,null,null,0,null,0,null,null,null,null,null,null,null,null,null,-709346.04514985252,"нет",28,36825.124449404648]
["e","2026-04-05",36825.124449404648,42434.8694231314,-5609.7449737267498,0,null,null,null,null,0,null,0,null,null,null,null,null,null,null,null,null,-751780.91457298398,"нет",31,36825.124449404648]
["e","2026-05-05",36825.124449404648,42770.458515485996,-5945.3340660813483,0,null,null,null,null,0,null,0,null,null,null,null,null,null,null,null,null,-794551.37308846996,"нет",30,36825.124449404648]
["e","2026-06-05",36825.124449404648,43108.701558245964,-6283.5771088413167,0,null,null,null,null,0,null,0,null,null,null,null,null,null,null,null,null,-837660.07464671589,"нет",31,36825.124449404648]
["e","2026-07-05",36825.124449404648,43449.619539735759,-6624.495090331111,0,null,null,null,null,0,null,0,null,null,null,null,null,null,null,null,null,-881109.69418645161,"нет",30,36825.124449404648]
["e","2026-08-05",36825.12444940464,43793.233614262499,-6968.1091648578549,0,null,null,null,null,0,null,0,null,null,null,null,null,null,null,null,null,-924902.92780071415,"нет",31,36825.124449404648]
["e","2026-09-05",36825.124449404648,44139.565103428627,-7314.4406540239806,0,null,null,null,null,null,null,null,null,null,null,null,null,null,null,null,null,-969042.49290414283,null,31,36825.124449404648]
[null,"Усього",628028.3741445787,419999.99999999994,126548.37414457869,0,0,0,10500,0,0,0,122220,0,0,0,0,0,0,0,{"$f":"XIRR(C40:C76,B40:B76)","v":2.1832419633865365},259268.37414457859]
[]
[null,"Загальні витрати за кредитом( проценти за користування кредитом, комісії та інші обовязкові платежі за супровідні послуги кредитодавця, кредитного посередника (за наявності) та третіх осіб, повязані з отриманням, обслуговуванням та поверненням кредиту), грн з них:",null,null,null,null,null,null,null,{"$f":"V77","v":259268.37414457859}]
[null," - Платежі за супровідні послуги кредитодавця, повязані з отриманням, обслуговуванням та поверненням кредиту), грн",null,null,null,null,null,null,null,{"$f":"E77+F77+G77+I77+J77","v":137048.3741445787}]
[null," - Платежі за супровідні послуги третіх осіб, повязані з отриманням, обслуговуванням та поверненням кредиту), грн",null,null,null,null,null,null,null,{"$f":"K77+L77+M77+N77+O77+P77+R77+T77","v":122220}]
[null,"Орієнтовна загальна вартість кредиту для споживача за весь строк користування кредитом ( у т.ч. тіло кредиту, відсотки, комісії та інші платежі), грн.",null,null,null,null,null,null,null,{"$f":"J79+D9","v":679268.37414457859}]
[null,"Орієнтовна реальна річна процентна ставка, % річних",null,null,null,null,null,null,null,{"$f":"U77","v":2.1832419633865365}]
[null,"Застереження: Розрахунок загальної вартості Кредиту і реальної процентної ставки носить інформативний характер для Позичальника  і визначено станом на дату укладання Кредитного договору. При здійсненні розрахунку загальної вартості Кредиту і реальної процентної ставки Кредитор враховував вартість супутніх послуг третіх осіб, послуги кредитного посередник ( за наявності). В розрахунок загальної  вартості Кредиту і реальної процентної ставки не включались умовні платежі Позичальника  по Договору (пені, штрафи,  які встановлюються згідно з Договором)."]
[null,"Наведені обчислення реальної річної процентної ставки та орієнтовної загальної вартості кредиту для споживача є репрезентативними та базуються на обраних споживачем умовах кредитування, викладених вище, і на припущенні, що договір про споживчий кредит залишатиметься дійсним протягом погодженого строку, а кредитодавець і споживач виконають свої обов’язки на умовах  та у строки, визначені в договорі.Реальна річна процентна ставка обчислена на основі припущення, що процентна ставка та інші платежі за послуги кредитодавця залишатимуться незмінними та застосовуватимуться протягом строку дії договору про споживчий кредит. Застереження: використання інших способів надання кредиту та/або зміна інших вищезазначених умов кредитування можуть мати наслідком застосування іншої реальної річної процентної ставки та орієнтовної загальної вартості кредиту для споживача.  Орієнтовна реальна річна процентна ставка обчислена з використанням фінансової функції ЧИСТВНДОХ програмного продукту Microsoft Excel."]
[null,"Позичальник не сплачує Кредитору комісійних винагород за розрахунково-касове обслуговування, що пов‘язані з погашенням Кредиту та процентів за ним Позичальником у готівковій чи безготівковій формі через установи Кредитора. У випадку погашення Позичальником Кредиту та процентів за ним не через установи Кредитора Позичальник буде сплачувати послуги інших банків згідно з тарифами, які діятимуть в таких банках на момент здійснення розрахунково-касового обслуговування Позичальника."]

{"sheet":"Номінальна %ставка","index":2,"n_rows":6,"n_cols":6,"rows_kept":6,"cut":false,"hidden":true,"merged":[]}
[null,"Строк кредиту, міс."]
["Авансовий внесок",12,24,36,48,60]
[0.2,0.1399,0.15989999999999999,0.1699,0.1799,0.18990000000000001]
[0.3,0.12989999999999999,0.14990000000000001,0.15989999999999999,0.1699,0.1799]
[0.4,0.11990000000000001,0.1399,0.14990000000000001,0.15989999999999999,0.1699]
[0.5,9.4899999999999998E-2,0.11990000000000001,0.1399,0.14990000000000001,0.15989999999999999]